[Event "26th Hit Open-A 2022"]
[Site "Nova Gorica"]
[Date "2022.09.20"]
[Round "7.33"]
[White "Vidmar, Klara"]
[Black "Acimovic, Sergej"]
[Result "1/2-1/2"]
[ECO "C54"]
[WhiteElo "1788"]
[BlackElo "2114"]
[Annotator "TA"]
[PlyCount "239"]
[EventDate "2022.09.16"]
[EventType "swiss"]
[EventCountry "SLO"]
[SourceTitle "playchess.com"]
[Source "ChessBase"]
[SourceQuality "1"]
[TimeControl "5400+30"]

{[%evp 28,239,11,13,8,11,20,0,0,0,25,15,18,18,84,52,75,56,81,69,93,55,76,41,51,27,26,18,81,84,86,83,99,52,157,116,212,203,256,235,235,223,222,223,202,201,216,202,234,222,248,235,245,239,236,0,0,-6,-8,-10,-10,-139,-152,-397,-150,-130,-41,-135,-141,-685,-152,-174,-1,-1,0,-4,0,0,0,-6,-7,-7,-8,-11,-18,-11,-20,-16,-5,-9,-17,-20,-14,-35,-3,-5,0,0,0,-32,-12,-11,0,0,0,0,0,0,0,0,0,0,0,0,0,0,0,0,0,0,0,0,0,0,0,0,0,0,0,0,0,0,0,0,0,0,0,0,0,0,0,0,0,0,0,0,0,0,0,0,0,0,0,0,0,0,0,0,0,0,0,0,0,0,0,0,0,0,0,0,0,0,0,0,0,0,0,0,0,0,0,0,0,0,0,0,0,0,0,0,0,0,0,0,0,0,0,0,0,0,0,0,0,0,0,0,0,0,0,0,0,0,0,0]} 1. e4 {[%emt 0:00:01] Fernandez,D} e5 {[%emt 0:00:15]} 2. Nf3 {[%emt 0:00:07]} Nc6 {[%emt 0:00:20]} 3. Bc4 {[%emt 0:00:11]} Bc5 {[%emt 0:00:34]} 4. c3 {[%emt 0:00:19]} Nf6 {[%emt 0:00:14]} 5. d4 {[%emt 0:00:44]} exd4 {[%emt 0:00:13]} 6. cxd4 {[%emt 0:00:15]} Bb4+ {[%emt 0:00:27]} 7. Bd2 {[%emt 0:00:15]} Bxd2+ {[%emt 0:02:16]} 8. Nbxd2 {[%emt 0:00:17]} d5 {[%emt 0:00:44]} 9. exd5 {[%emt 0:00:32]} Nxd5 {[%emt 0:00:09]} 10. Qb3 {[%emt 0:01:28]} Na5 {[%emt 0:01:46]} 11. Qa4+ {[%emt 0:00:34]} Nc6 {[%emt 0:00:09]} 12. Qb3 {[%emt 0:00:23]} Nce7 {[%emt 0:00:06]} 13. O-O {[%emt 0:02:34]} O-O {[%emt 0:00:18]} 14. Rfe1 {[%emt 0:03:25]} c6 {[%emt 0:00:21]} 15. Ne4 {[%emt 0:04:52]} Nb6 {[%emt 0:09:11] C54: Giuoco Piano: 4 c3 Nf6, main lines with 5 d4 and 5 d3.} 16. Bd3 {[%emt 0:10:28]} Ned5 {[%emt 0:05:07] [#]} 17. a4 $146 {[%emt 0:09:27]} ({Predecessor (2):} 17. Nc5 Nf6 18. Rac1 Rb8 19. Qa3 a6 20. Qb3 Qc7 21. Ne4 Nfd5 22. Nc3 Qd6 23. Be4 {½-½ (36) Jones,G (2640)-Karjakin,S (2753) Wijk aan Zee 2018 CBM 183 [Fernandez,D]}) 17... Nf4 {[%emt 0:03:50]} 18. Bf1 {[%emt 0:05:31]} Be6 {[%emt 0:09:08]} 19. Qa3 {[%emt 0:04:28]} Bd5 {[%emt 0:05:33]} 20. a5 {[%emt 0:02:59]} Bxe4 {[%emt 0:17:33]} (20... Nd7 $11 {keeps the balance.}) 21. Rxe4 {[%emt 0:05:24]} Nbd5 {[%emt 0:00:22]} 22. a6 {[%emt 0:01:34]} bxa6 {[%emt 0:08:24]} 23. Ne5 {[%emt 0:04:12]} Qf6 {[%emt 0:06:03]} 24. Qf3 {[%emt 0:05:18][%mdl 1024] White has strong compensation.} Ne6 {[%emt 0:05:52]} 25. Qg3 {[%emt 0:08:51]} (25. Qe2 $5 {[%cal Re5d7]}) 25... Nec7 {[%emt 0:06:33]} 26. Bd3 {[%emt 0:01:24]} Rad8 {[%emt 0:05:05] Inhibits Nd7.} 27. Qh3 {[%emt 0:10:38][%cal Oe4f4]} g6 {[%emt 0:00:28]} (27... Qd6 $1 $11) 28. Nd7 $16 {[%emt 0:02:56] White is much more active.} Rxd7 {[%emt 0:00:37]} 29. Qxd7 {[%emt 0:00:02]} Rd8 {[%emt 0:00:34]} 30. Qh3 {[%emt 0:01:28]} (30. Qg4 $16) 30... Nb4 {[%emt 0:03:43]} (30... Rb8 $14) 31. Bf1 {[%emt 0:00:32]} Ne6 {[%emt 0:01:02]} (31... Nc2 $16 32. Rd1 Ne6) 32. Qc3 $18 {[%emt 0:01:10]} Ng5 {[%emt 0:02:03]} 33. Re5 {[%emt 0:01:37]} Nd5 {[%emt 0:00:42]} 34. Qg3 {[%emt 0:00:55]} Ne6 {[%emt 0:00:32]} 35. Rxa6 {[%emt 0:00:58]} Nxd4 {[%emt 0:00:45]} 36. Re1 {[%emt 0:02:11]} (36. Rxa7 Nf5 37. Rxf5 Qxf5 $11) 36... Nf4 {[%emt 0:01:10][%cal Od4e2]} 37. h3 {[%emt 0:01:23]} Rd5 {[%emt 0:00:38]} 38. Re4 {[%emt 0:01:00]} Rf5 {[%emt 0:02:18]} 39. Qe3 {[%emt 0:01:17]} Nde6 {[%emt 0:01:29]} 40. Rxc6 {[%emt 0:00:25]} Qxb2 {[%emt 0:00:43]} 41. Rxf4 $2 {[%emt 0:03:53]} Nxf4 $11 {[%emt 0:00:47]} 42. g4 {[%emt 0:00:04]} Rf6 {[%emt 0:01:22]} 43. Rc8+ {[%emt 0:00:23]} Kg7 {[%emt 0:00:01]} 44. Qe8 {[%emt 0:00:06] [#]} (44. Qxa7 $11 h5 45. Qe3) 44... Ne6 $1 $17 {[%emt 0:01:11]} 45. Qh8+ {[%emt 0:00:32]} Kh6 {[%emt 0:00:01]} 46. Rc2 {[%emt 0:00:17]} Qd4 {[%emt 0:00:52]} (46... Qxc2 $17 47. Qxf6 Qc7) 47. Rd2 {[%emt 0:01:57]} Qf4 {[%emt 0:00:10]} 48. Rc2 $2 {[%emt 0:01:50][%mdl 8192] [#]} (48. Ra2 $17) 48... a5 $2 {[%emt 0:01:08]} (48... Nd4 $1 $19 {[%cal Rd4f3] and Black stays clearly on top. ( -> ...Nf3+)} 49. Bg2 (49. Qf8+ $2 Kg5 $19) 49... Nxc2 50. Qf8+ Kg5 51. Qc5+ Kh4 52. Qxc2 Qd4) 49. Bg2 {[%emt 0:00:54]} Ng7 $2 {[%emt 0:01:16]} (49... a4 $19 {Threatens to win with ...Qd4.} 50. Ra2 (50. h4 $2 Qxg4 51. Qxf6 Qd1+ 52. Bf1 Qxc2 $19) 50... Qc1+ 51. Kh2 Qc7+ 52. Kg1 Rf4) 50. Qd8 {[%emt 0:01:12]} a4 {[%emt 0:00:32] With the idea ...Ne6.} 51. h4 $1 $132 {[%emt 0:00:20][%mdl 2048] White is fighting back} g5 {[%emt 0:00:31]} (51... Qxg4 $2 52. Qxf6 Nf5 53. Qg5+ Qxg5 54. hxg5+ Kxg5 55. Ra2 $18) 52. hxg5+ {[%emt 0:00:32]} Qxg5 {[%emt 0:00:18]} 53. Rc5 {[%emt 0:00:16]} Ne6 {[%emt 0:00:52]} 54. Rxg5 {[%emt 0:01:40][%cal Rd8f6]} Nxd8 $11 {[%emt 0:00:01][%mdl 4096] Endgame KRB-KRN} 55. Rh5+ {[%emt 0:00:41]} Kg7 {[%emt 0:00:02]} 56. Be4 {[%emt 0:00:23] Inhibits Rg6.} Ra6 {[%emt 0:00:58]} 57. Rxh7+ {[%emt 0:00:12]} Kg8 {[%emt 0:00:21]} 58. Rh1 {[%emt 0:00:09]} Ne6 {[%emt 0:00:23] And now ...a3 would win.} ({Of course not} 58... a3 $6 59. Kg2 $17) 59. Kg2 {[%emt 0:00:14]} a3 {[%emt 0:00:15]} 60. Ra1 $1 {[%emt 0:00:11]} Ra4 {[%emt 0:00:26]} ({Much weaker is} 60... a2 $6 61. Kf1 $17) 61. f3 {[%emt 0:00:12]} Kg7 {[%emt 0:00:15]} 62. Kf2 {[%emt 0:00:08]} Nc5 {[%emt 0:00:17]} 63. Bf5 {[%emt 0:00:20]} Kf6 {[%emt 0:00:28]} (63... a2 $5 {[%cal Rc5b3]} 64. Bc2 Ra3 $17) 64. Ke3 $1 {[%emt 0:00:22] The position is equal.} Ke5 {[%emt 0:01:15]} 65. Bc2 {[%emt 0:00:21]} Rc4 {[%emt 0:01:24] aiming for ...Rc3+.} 66. f4+ {[%emt 0:01:28]} Kd6 {[%emt 0:00:01]} 67. Kd2 {[%emt 0:01:28]} Rd4+ {[%emt 0:00:16]} 68. Ke3 {[%emt 0:00:16]} Rc4 {[%emt 0:00:01]} 69. Kd2 {[%emt 0:00:06]} Rxf4 {[%emt 0:00:01] Hoping for ...Rf3.} 70. Rxa3 {[%emt 0:00:05]} Rxg4 {[%emt 0:00:10]} 71. Rf3 {[%emt 0:00:26]} Rg2+ {[%emt 0:00:46]} 72. Kc3 {[%emt 0:00:58]} Ke7 {[%emt 0:00:42]} 73. Re3+ {[%emt 0:00:16]} Kf6 {[%emt 0:00:24]} 74. Rf3+ {[%emt 0:00:07]} Kg7 {[%emt 0:00:04]} 75. Rf5 {[%emt 0:00:35]} Ne6 {[%emt 0:00:12][%cal Og2c2] White must now prevent ...Rxc2+!} 76. Be4 {[%emt 0:01:16]} Rg4 {[%emt 0:00:13]} 77. Bd5 {[%emt 0:00:43]} Kg6 {[%emt 0:01:18]} 78. Rf3 {[%emt 0:00:43]} Nf4 {[%emt 0:01:21]} 79. Bc4 {[%emt 0:00:42]} f5 {[%emt 0:00:32]} 80. Kd2 {[%emt 0:00:38]} Kg5 {[%emt 0:00:12]} 81. Bf1 {[%emt 0:00:39]} Rg1 {[%emt 0:00:29]} 82. Ke3 {[%emt 0:00:29]} Ne6 {[%emt 0:01:01]} 83. Kf2 {[%emt 0:00:11]} Rh1 {[%emt 0:00:18]} 84. Bh3 {[%emt 0:01:06]} Ng7 {[%emt 0:00:33]} 85. Rg3+ {[%emt 0:00:33]} Kf6 {[%emt 0:00:02]} 86. Kg2 {[%emt 0:00:15]} Ra1 {[%emt 0:00:06]} 87. Rxg7 {[%emt 0:00:16] KRB-KR} Ra2+ {[%emt 0:00:15]} 88. Kg1 {[%emt 0:00:33]} Kxg7 {[%emt 0:00:07]} 89. Bxf5 {[%emt 0:00:02] KR-KB} Kf6 {[%emt 0:00:06]} 90. Bh7 {[%emt 0:00:16]} Ke5 {[%emt 0:00:11]} 91. Bg8 {[%emt 0:00:11]} Rb2 {[%emt 0:00:14]} 92. Kf1 {[%emt 0:00:07]} Kd4 {[%emt 0:00:19]} 93. Be6 {[%emt 0:00:36]} Ke3 {[%emt 0:00:08] ...Rf2+ is the strong threat.} 94. Bd5 {[%emt 0:00:06]} Rd2 {[%emt 0:00:32]} 95. Bc6 {[%emt 0:00:08]} Rf2+ {[%emt 0:00:14]} 96. Kg1 {[%emt 0:00:17]} Rc2 {[%emt 0:00:27]} 97. Bb7 {[%emt 0:00:08]} Rb2 {[%emt 0:02:22]} 98. Bc6 {[%emt 0:00:04]} Rb6 {[%emt 0:00:30]} 99. Bd5 {[%emt 0:00:15]} Rb2 {[%emt 0:00:51]} 100. Bc6 {[%emt 0:00:05]} Ke2 {[%emt 0:01:04]} 101. Kg2 {[%emt 0:00:18]} Rb6 {[%emt 0:00:02]} 102. Be4 {[%emt 0:00:47]} Ke3 {[%emt 0:00:25]} 103. Bd5 {[%emt 0:00:10]} Rd6 {[%emt 0:00:27]} 104. Bb7 {[%emt 0:00:11]} Rg6+ {[%emt 0:00:56]} 105. Kf1 {[%emt 0:00:11]} Rf6+ {[%emt 0:00:32]} 106. Kg1 {[%emt 0:00:12]} Rf7 {[%emt 0:00:16]} 107. Bd5 {[%emt 0:00:15]} Rf2 {[%emt 0:00:21]} 108. Bc6 {[%emt 0:00:22]} Rf6 {[%emt 0:00:03]} 109. Bd5 {[%emt 0:00:09]} Kf4 {[%emt 0:00:14]} 110. Kg2 {[%emt 0:01:25]} Kg4 {[%emt 0:00:09]} 111. Bb7 {[%emt 0:00:14]} Rb6 {[%emt 0:00:05]} 112. Bd5 {[%emt 0:00:24]} Rb2+ {[%emt 0:00:05]} 113. Kf1 {[%emt 0:00:07]} Kf4 {[%emt 0:00:20]} 114. Bc6 {[%emt 0:00:09]} Kg3 {[%emt 0:00:33]} 115. Bd5 {[%emt 0:00:32]} Rb5 {[%emt 0:00:08]} 116. Bc6 {[%emt 0:00:13]} Rb6 {[%emt 0:00:27]} 117. Bd5 {[%emt 0:00:10]} Rd6 {[%emt 0:00:05]} 118. Bb7 {[%emt 0:00:09]} Re6 {[%emt 0:00:26]} 119. Bd5 {[%emt 0:00:12]} Re5 {[%emt 0:02:11]} 120. Bc6 {[%emt 0:00:08] White happily takes the draw.  Weighted Error Value: White=0.32/Black=0.37} 1/2-1/2

[Event "26th Hit Open-A 2022"]
[Site "Nova Gorica"]
[Date "2022.09.20"]
[Round "7.34"]
[White "Goroshkova, Liudmila"]
[Black "Walker, Samuel A"]
[Result "1/2-1/2"]
[ECO "B33"]
[WhiteElo "1961"]
[BlackElo "2028"]
[Annotator "TA"]
[PlyCount "80"]
[EventDate "2022.09.16"]
[EventType "swiss"]
[EventCountry "SLO"]
[SourceTitle "playchess.com"]
[Source "ChessBase"]
[SourceQuality "1"]
[TimeControl "5400+30"]

{[%evp 26,80,2,0,22,9,15,8,11,1,15,-3,37,0,20,25,34,22,33,17,25,39,37,14,39,8,8,8,8,8,8,8,8,0,0,0,0,0,0,0,0,0,0,0,0,0,0,0,0,0,0,0,0,0,0,0,0]} 1. Nf3 {[%emt 0:00:59][%cal Bg1f3,Bf3d4,Bd4b5,Bb5a3,Ba3c2,Bc2e3][%mdl 32]} c5 {[%emt 0:00:36]} 2. e4 {[%emt 0:00:14]} Nc6 {[%emt 0:00:09]} 3. d4 {[%emt 0:00:05]} cxd4 {[%emt 0:00:12]} 4. Nxd4 {[%emt 0:00:04]} Nf6 {[%emt 0:00:18]} 5. Nc3 {[%emt 0:00:06]} e5 {[%emt 0:01:04]} 6. Ndb5 {[%emt 0:00:12]} d6 {[%emt 0:00:11]} 7. Bg5 {[%emt 0:00:24]} a6 {[%emt 0:00:10]} 8. Na3 {[%emt 0:00:06]} b5 {[%emt 0:00:10]} 9. Nd5 {[%emt 0:00:09]} Be7 {[%emt 0:00:15]} 10. Bxf6 {[%emt 0:00:27]} Bxf6 {[%emt 0:00:12]} 11. c3 {[%emt 0:00:16]} O-O {[%emt 0:00:36]} 12. Nc2 {[%emt 0:04:23]} Rb8 $1 {[%emt 0:00:26][%mdl 4] is recently more successful than 12...Bg5.} 13. Be2 {[%emt 0:00:39]} Bg5 {[%emt 0:01:59]} 14. Nce3 {[%emt 0:05:18]} Kh8 {[%emt 0:05:22] B33: Sicilian: Pelikan and Sveshnikov Variations.} 15. O-O {[%emt 0:04:00]} g6 {[%emt 0:01:08]} 16. Qd3 {[%emt 0:08:03]} a5 {[%emt 0:05:28]} 17. Rad1 {[%emt 0:03:38]} Be6 {[%emt 0:05:03]} 18. Kh1 {[%emt 0:13:50]} f5 {[%emt 0:09:06]} 19. f4 {[%emt 0:04:11]} Bh6 {[%emt 0:15:40]} 20. exf5 {[%emt 0:02:14]} gxf5 {[%emt 0:00:30]} 21. fxe5 {[%emt 0:00:36]} Nxe5 {[%emt 0:00:34]} 22. Qd4 {[%emt 0:01:04]} Bg7 {[%emt 0:04:12][%cal Oe5c4]} 23. Nf4 {[%emt 0:06:15][%csl LRd6,LRe6] [#] Pair of Knights!} Bxa2 $146 {[%emt 0:01:31][%cal Oe5c4] [#] Hoping for ...Nc4!} ({Predecessor:} 23... Bd7 24. Nh5 Qg5 25. Nxg7 Qxg7 26. Qxd6 Rbe8 27. Bf3 f4 28. Nd5 Re6 29. Qc5 Rh6 {1-0 (39) Bao,Q-Nguyen,H (2227) Dong Thap 2003}) 24. Nh5 $1 {[%emt 0:01:05]} Be6 {[%emt 0:03:03]} 25. Qxd6 {[%emt 0:03:16]} Qxd6 {[%emt 0:00:37] The position is equal.} 26. Rxd6 {[%emt 0:00:06]} Bc4 {[%emt 0:01:05]} 27. Bxc4 {[%emt 0:00:58]} ({But not} 27. Rxf5 Rxf5 28. Nxf5 Bf8 $15) 27... Nxc4 {[%emt 0:01:45]} 28. Nxc4 {[%emt 0:02:19]} bxc4 {[%emt 0:00:19]} 29. Nxg7 {[%emt 0:00:16]} Kxg7 $11 {[%emt 0:00:15][%mdl 4096] Endgame KRR-KRR} 30. Rf2 {[%emt 0:02:53]} Rfd8 {[%emt 0:05:33]} 31. Rxd8 {[%emt 0:00:13]} Rxd8 {[%emt 0:00:04] KR-KR} 32. h3 {[%emt 0:01:05][%cal Bh2h3,Bh3h4][%mdl 32]} Kg6 {[%emt 0:01:11]} 33. Kh2 {[%emt 0:02:08]} Kg5 {[%emt 0:07:28]} 34. h4+ {[%emt 0:00:40]} Kg6 {[%emt 0:01:30]} 35. Rf4 {[%emt 0:02:18]} Rd2 {[%emt 0:01:28]} 36. Rxc4 {[%emt 0:00:07]} Rxb2 {[%emt 0:00:08]} 37. Rc5 {[%emt 0:00:37]} a4 {[%emt 0:05:34]} 38. Ra5 {[%emt 0:00:17]} Ra2 {[%emt 0:01:26]} 39. c4 {[%emt 0:00:38]} a3 {[%emt 0:07:26]} 40. c5 {[%emt 0:01:52]} Rc2 {[%emt 0:03:39] Weighted Error Value: White=0.06 (flawless) /Black=0.07 (flawless)} 1/2-1/2

[Event "26th Hit Open-A 2022"]
[Site "Nova Gorica"]
[Date "2022.09.20"]
[Round "7.35"]
[White "Fiolo, Costanza"]
[Black "Kepplinger, Lukas"]
[Result "0-1"]
[ECO "D00"]
[WhiteElo "1768"]
[BlackElo "1994"]
[Annotator "TA"]
[PlyCount "60"]
[EventDate "2022.09.16"]
[EventType "swiss"]
[EventCountry "SLO"]
[SourceTitle "playchess.com"]
[Source "ChessBase"]
[SourceQuality "1"]
[TimeControl "5400+30"]

{[%evp 9,59,7,0,-12,-12,-16,-19,-22,2,0,10,-34,-19,-55,-49,-43,-45,-55,-58,-36,-50,-52,-34,-56,-54,-54,-60,-68,-64,-59,-37,-70,-41,-59,-54,-73,-65,-60,-65,-105,-106,-132,-138,-143,-118,-127,-124,-143,-168,-29998,-29999,-29999]} 1. d4 {[%emt 0:00:10]} d5 {[%emt 0:00:10]} 2. Nc3 {[%emt 0:00:13]} Nf6 {[%emt 0:00:21]} 3. Bf4 {[%emt 0:00:09]} Bf5 {[%emt 0:07:15]} 4. f3 {[%emt 0:00:53]} h5 {[%emt 0:03:48]} 5. e3 {[%emt 0:06:20]} e6 {[%emt 0:04:23] [#]} 6. a3 $146 {[%emt 0:02:34] D00: 1 d4 d5: Unusual lines.} ({Predecessor:} 6. Bd3 Bxd3 7. cxd3 c6 8. Nge2 Nbd7 9. O-O Be7 10. Qb3 Qb6 11. Qc2 O-O 12. a3 {0-1 (60) Niemann,H (2465)-Gharibyan,M (2432) Chess.com INT 2020}) 6... a6 {[%emt 0:01:48]} 7. Bd3 {[%emt 0:01:02]} Bxd3 {[%emt 0:03:25]} 8. Qxd3 {[%emt 0:01:05] The position is equal.} Bd6 {[%emt 0:09:27]} 9. Bg5 {[%emt 0:04:54]} c5 {[%emt 0:14:30]} 10. Nge2 {[%emt 0:12:34]} Nc6 {[%emt 0:04:08]} 11. e4 {[%emt 0:26:49]} cxd4 {[%emt 0:04:46]} 12. Nxd4 {[%emt 0:06:40]} dxe4 {[%emt 0:05:44]} 13. Nxc6 $1 {[%emt 0:02:26]} exd3 {[%emt 0:00:44]} 14. Nxd8 {[%emt 0:00:28]} Rxd8 {[%emt 0:00:36]} 15. cxd3 {[%emt 0:01:41]} Be7 {[%emt 0:00:17]} 16. Rd1 {[%emt 0:01:50]} Nd5 {[%emt 0:02:03]} 17. Bxe7 {[%emt 0:03:30]} Kxe7 {[%emt 0:00:35]} 18. Nxd5+ {[%emt 0:00:48]} Rxd5 $15 {[%emt 0:00:07][%mdl 4096] Endgame KRR-KRR} ({Much weaker is} 18... exd5 19. h4 $11) 19. Ke2 {[%emt 0:00:27]} Rc8 {[%emt 0:03:47]} 20. Rd2 {[%emt 0:03:37]} g5 {[%emt 0:03:10] Black is more active.} 21. d4 {[%emt 0:02:11]} Rc4 {[%emt 0:02:49]} 22. Rhd1 {[%emt 0:00:55]} b5 {[%emt 0:04:59]} 23. Ke3 {[%emt 0:02:28]} b4 {[%emt 0:00:55]} 24. axb4 {[%emt 0:02:04]} Rxb4 {[%emt 0:00:35]} 25. Ra1 {[%emt 0:01:53]} a5 {[%emt 0:01:49]} 26. Rc1 {[%emt 0:01:19]} Rb3+ {[%emt 0:01:34]} 27. Rc3 {[%emt 0:01:14]} Rdb5 {[%emt 0:01:05]} 28. Rxb3 {[%emt 0:00:43]} Rxb3+ {[%emt 0:00:07]} 29. Ke4 $2 {[%emt 0:02:47] [#]} (29. Kf2 $19) 29... f5+ {[%emt 0:00:18]} 30. Ke5 {[%emt 0:00:17]} Re3# {[%emt 0:00:04] Weighted Error Value: White=0.46/Black=0.07 (flawless)} 0-1

[Event "26th Hit Open-A 2022"]
[Site "Nova Gorica"]
[Date "2022.09.20"]
[Round "7.36"]
[White "Azinovic, Igor"]
[Black "Alexandrova, Angelina"]
[Result "1/2-1/2"]
[ECO "C01"]
[WhiteElo "1814"]
[BlackElo "1842"]
[Annotator "NA RC COMBH"]
[PlyCount "36"]
[EventDate "2022.09.16"]
[EventType "swiss"]
[EventCountry "SLO"]
[SourceTitle "playchess.com"]
[Source "ChessBase"]
[SourceQuality "1"]
[TimeControl "5400+30"]

1. e4 {[%emt 0:00:24]} e6 {[%emt 0:00:03]} 2. d4 {[%emt 0:00:17]} d5 {[%emt 0:00:03]} 3. exd5 {[%emt 0:00:13]} exd5 {[%emt 0:00:06]} 4. c4 {[%emt 0:00:54]} Nf6 {[%emt 0:01:35]} 5. Nc3 {[%emt 0:00:59]} Bb4 {[%emt 0:01:31]} 6. Nf3 {[%emt 0:01:24]} O-O {[%emt 0:00:42]} 7. Be2 {[%emt 0:01:00]} dxc4 {[%emt 0:04:50]} 8. O-O {[%emt 0:02:49]} Bxc3 {[%emt 0:03:36]} 9. bxc3 {[%emt 0:00:16]} Be6 {[%emt 0:04:11]} 10. Bg5 {[%emt 0:01:38]} b5 {[%emt 0:04:30]} 11. Ne5 {[%emt 0:04:14]} Bd5 {[%emt 0:01:15]} 12. Bf3 {[%emt 0:00:31]} c6 {[%emt 0:01:56]} 13. a4 {[%emt 0:06:11]} Qd6 {[%emt 0:07:42]} 14. Bxf6 {[%emt 0:02:42]} Qxf6 {[%emt 0:04:36]} 15. Bxd5 {[%emt 0:01:29]} cxd5 {[%emt 0:00:02]} 16. axb5 {[%emt 0:00:20]} a5 {[%emt 0:04:08]} 17. bxa6 {[%emt 0:01:13]} Rxa6 {[%emt 0:00:24]} 18. Qf3 {[%emt 0:04:39]} Qxf3 {[%emt 0:06:55]} 1/2-1/2

[Event "26th Hit Open-A 2022"]
[Site "Nova Gorica"]
[Date "2022.09.20"]
[Round "7.37"]
[White "Cokan, Mirko"]
[Black "Thuesen, Mogens"]
[Result "0-1"]
[ECO "D02"]
[WhiteElo "1683"]
[BlackElo "2242"]
[Annotator "TA"]
[PlyCount "74"]
[EventDate "2022.09.16"]
[EventType "swiss"]
[EventCountry "SLO"]
[SourceTitle "playchess.com"]
[Source "ChessBase"]
[SourceQuality "1"]
[TimeControl "5400+30"]

{[%evp 10,74,7,-10,2,-11,-8,-14,-15,-12,14,0,23,-4,19,-32,35,17,8,-56,-44,-45,-22,-31,-2,-188,-182,-179,-197,-179,-182,-216,-75,-251,-234,-254,-257,-252,-257,-242,-250,-356,-253,-350,-205,-368,-356,-462,-444,-449,-450,-466,-466,-643,-661,-671,-670,-663,-656,-637,-627,-693,-619,-1250,-1170,-1120,-741]} 1. d4 {[%emt 0:00:39]} d5 {[%emt 0:00:40]} 2. Bf4 {[%emt 0:00:56]} Nf6 {[%emt 0:00:45]} 3. e3 {[%emt 0:02:59]} e6 {[%emt 0:00:12]} 4. Nf3 {[%emt 0:02:04]} Bd6 {[%emt 0:00:10]} 5. Bg3 {[%emt 0:00:55]} O-O {[%emt 0:00:11]} 6. Nbd2 {[%emt 0:03:26]} c5 {[%emt 0:00:10] D02: 1 d4 d5 2 Nf3 sidelines, including 2...Nf6 3 g3 and 2...Nf6 3 Bf4.} 7. c3 {[%emt 0:05:20]} Qc7 {[%emt 0:00:15]} 8. Ne5 {[%emt 0:02:15]} Nbd7 {[%emt 0:02:16][%cal Rd7e5] The position is equal.} 9. f4 {[%emt 0:02:04]} b6 {[%emt 0:00:34]} 10. Bd3 {[%emt 0:01:11]} a5 {[%emt 0:01:46]} 11. Qe2 {[%emt 0:02:03]} Bb7 {[%emt 0:03:54]} 12. Rc1 {[%emt 0:00:44] [#]} ({Better is} 12. Bb5 $11) 12... Qc8 $146 {[%emt 0:05:23]} (12... c4 $15 13. Bc2 b5) ({Predecessor:} 12... c4 13. Bb1 b5 14. Bh4 Ne8 15. O-O g6 16. Rf3 Nxe5 17. fxe5 Be7 18. Qf2 Qd8 19. Bxe7 Qxe7 {1-0 (46) Buxade Roca,G (2202)-Grau Brumos,I (2122) Andorra 2006}) 13. b3 {[%emt 0:03:09]} a4 {[%emt 0:02:11]} 14. Ndf3 {[%emt 0:14:52]} ({White should try} 14. O-O $11) 14... axb3 {[%emt 0:12:04]} 15. axb3 {[%emt 0:00:42]} Ra3 {[%emt 0:05:44]} 16. f5 {[%emt 0:07:03]} exf5 {[%emt 0:06:41]} (16... Ne4 {is interesting.} 17. fxe6 fxe6 18. O-O Ndf6) 17. Nxd7 $2 {[%emt 0:01:56] [#]} (17. Bxf5 $11 Qc7 18. O-O) 17... Bxg3+ $19 {[%emt 0:01:14]} (17... Qxd7 18. Bxd6 Qxd6 19. Bxf5) 18. hxg3 {[%emt 0:00:30]} Qxd7 {[%emt 0:00:08]} 19. Ne5 {[%emt 0:02:08]} Qe6 {[%emt 0:01:02]} 20. g4 {[%emt 0:04:16]} Ne4 {[%emt 0:09:57]} ({Don't do} 20... Nxg4 21. Nxg4 f6 22. Nf2 $16) (20... Rxb3 21. Bxf5 Qd6 22. Qc2 $18) (20... fxg4 $19 {Strongly threatening ...Ne4.} 21. Rb1 Rfa8) 21. Qf3 $2 {[%emt 0:01:54]} (21. Bxe4 $17 {was necessary.} fxe4 22. g5) 21... fxg4 {[%emt 0:02:57]} ({Weaker is} 21... Rxb3 22. gxf5 Qd6 23. Bxe4 dxe4 24. Qh3 $17) 22. Qxg4 {[%emt 0:01:43]} Qxg4 {[%emt 0:00:49] The board is on fire.} ({And not} 22... Rxb3 23. Qxe6 fxe6 24. Bxe4 dxe4 25. Rf1 $17) 23. Nxg4 {[%emt 0:00:03]} Rxb3 {[%emt 0:00:49]} 24. Bxe4 {[%emt 0:02:15]} dxe4 {[%emt 0:00:09]} 25. Kf2 {[%emt 0:00:56]} (25. dxc5 $142 bxc5 26. Kf2) 25... f6 {[%emt 0:01:38]} 26. Kg3 {[%emt 0:00:34]} Rb2 {[%emt 0:01:27]} (26... f5 $142 27. Ne5 f4+ 28. Kh4 cxd4 29. cxd4 Rxe3) 27. Rh2 $2 {[%emt 0:02:35]} (27. dxc5 bxc5 28. Rb1 Rxb1 29. Rxb1) 27... Ra8 {[%emt 0:03:02]} 28. Rch1 {[%emt 0:01:13]} Raa2 {[%emt 0:01:55][%cal Oh7h5] Black is clearly winning.} 29. Rf1 {[%emt 0:09:02]} Rc2 {[%emt 0:01:01]} 30. dxc5 {[%emt 0:02:35]} bxc5 {[%emt 0:01:22]} 31. Nxf6+ {[%emt 0:00:59]} gxf6 {[%emt 0:00:07]} 32. Rxf6 {[%emt 0:00:21]} Ra6 {[%emt 0:00:49] Against Rd6} 33. Rf5 {[%emt 0:00:55]} Rg6+ {[%emt 0:01:32]} 34. Kf4 {[%emt 0:01:04]} Rxc3 {[%emt 0:01:50]} 35. Rfh5 {[%emt 0:01:47]} Rg7 {[%emt 0:01:54] [#] White must now prevent ...Rf7+.} 36. Ke5 {[%emt 0:01:41]} Rxe3 {[%emt 0:00:32] Threatens to win with ...Rd3.} 37. Kd6 {[%emt 0:00:49]} Reg3 {[%emt 0:00:32] Weighted Error Value: White=0.64/Black=0.25 (precise)} 0-1